fUST/lending_fUST_20240104
["ID","MTS","AMOUNT","RATE_DAILY","PERIOD"]
[310106178,1704341432882,-155.03031538,0.00020362,2]
[310106179,1704341432890,-2047.4343813,0.00020362,2]
[310106180,1704341432899,-1774.09209254,0.00020362,2]
[310106181,1704341432908,-2031.17478188,0.00020362,2]
[310106182,1704341432916,-155.12995769,0.00020362,2]
[310106183,1704341432925,-524.73174263,0.00020362,2]
[310106184,1704341432934,-4802.57442748,0.00020363,2]
[310106185,1704341432943,-13669.99879992,0.00020363,2]
[310106186,1704341432953,-167.46256175,0.00020364,2]
[310106187,1704341432962,-167.02179967,0.00020994,2]
[310106188,1704341432971,-7968.11042922,0.00020994,2]
[310106189,1704341432980,-155.19596842,0.00020994,2]
[310106190,1704341432989,-155.98376477,0.00020994,2]
[310106191,1704341432998,-230.06701302,0.00020994,2]
[310106192,1704341433007,-462.47611497,0.00020994,2]
[310106193,1704341433016,-160.48562195,0.00020994,2]
[310106194,1704341433025,-154.97048616,0.00020994,2]
[310106195,1704341433034,-155.18151674,0.00020994,2]
[310106196,1704341433044,-520.2185,0.00020995,2]
[310106197,1704341433053,-439.10820933,0.00020996,2]
[310106198,1704341433062,-155.55197925,0.00020996,2]
[310106199,1704341433072,-271.59103204,0.00020996,2]
[310106200,1704341433081,-198.1246724,0.00020996,2]
[310106201,1704341433090,-155.83135215,0.00020996,2]
[310106202,1704341433099,-266.17228355,0.00020996,2]
[310106203,1704341433108,-1949.88517687,0.00020996,2]
[310106204,1704341433118,-309.59752631,0.00020996,2]
[310106205,1704341433127,-309.67484837,0.00020996,2]
[310106206,1704341433136,-155.27288416,0.00020996,2]
[310106207,1704341433146,-295.38643142,0.00020996,2]
[310106208,1704341433155,-1734.34211695,0.00020997,2]
[310106209,1704341433164,-211.29574429,0.00020998,2]
[310106210,1704341433174,-343.52249919,0.00020998,2]
[310106211,1704341433183,-200.0,0.00020998,2]
[310106212,1704341433192,-328.2954028,0.00021,2]
[310106213,1704341433201,-299.76796878,0.00021,2]
[310106214,1704341433210,-188.54839567,0.000219,2]
[310106215,1704341433220,-166.666666,0.00021918,2]
[310106216,1704341433229,-259.805182,0.00021918,2]
[310106217,1704341433238,-2609.90168139,0.00022,2]
[310106218,1704341433247,-4910.23012541,0.00022,2]
[310106219,1704341433257,-156.63971141,0.00022,2]
[310106220,1704341433266,-309.72126324,0.00022,2]
[310106221,1704341433275,-1940.80378385,0.00022,2]
[310106307,1704341441587,-998.77945719,0.000163,2]
[310106308,1704341441644,-12251.72675818,0.000163,2]
[310106324,1704341443849,-1414.30934964,0.000163,2]
[310106325,1704341443862,-518.61,0.000163,2]
[310106326,1704341443876,-1510.26,0.000163,2]
[310106327,1704341443888,-861.211647,0.000163,2]
[310106328,1704341443900,-1251.36968144,0.000163,2]
[310106337,1704341446887,-1.56115718,0.000163,2]
[310106340,1704341487458,1204.2071574,0.00014668,2]
[310106341,1704341494193,976.288089,0.00014668,2]
[310106342,1704341521493,-292.50936788,0.00016295,2]
[310106343,1704341521540,-754.80581588,0.00016295,2]
[310106344,1704341521681,-380.86029985,0.00016295,2]
[310106345,1704341535765,-1000.0,0.00016293,2]
[310106346,1704341741119,707.492393,0.00015278,2]
[310106347,1704341811270,6076.6024275,0.00015223,2]
[310106348,1704341826545,1002.33786748,0.0003,120]
[310106349,1704341833248,500.0,0.000251,7]
[310106350,1704341886206,24900.0,0.00015169,2]
[310106351,1704342207743,353.746196,0.00015137,2]
[310106352,1704342399127,24900.0,0.00015121,2]
[310106355,1704342559767,-745.50248856,0.00016099,2]
[310106356,1704342584164,-154.8915759,0.00016096,2]
[310106357,1704342584194,-154.8915759,0.00016097,3]
[310106358,1704342584222,-198.59397553,0.00016097,2]
[310106359,1704342584250,-185.76422907,0.00016098,2]
[310106360,1704342595389,297.72458751,0.00015121,2]
[310106361,1704342596169,154.8915759,0.00014493,2]
[310106362,1704342609210,-343.52308259,0.00016008,2]
[310106363,1704342609241,-300.90710515,0.00016008,2]
[310106364,1704342609268,-54.97540804,0.00016009,2]
[310106398,1704342632627,-154.8915759,0.00016006,2]
[310106400,1704342632637,-399.48065998,0.00016006,2]
[310106402,1704342632646,-524.96234709,0.00016006,2]
[310106404,1704342632655,-2805.17049391,0.00016007,2]
[310106406,1704342632665,-559.81640358,0.00016007,2]
[310106408,1704342632675,-924.44826457,0.00016008,2]
[310106410,1704342632684,-1183.3849228,0.00016009,2]
[310106412,1704342632694,-294.04006646,0.00016009,2]
[310106414,1704342632703,-176.33403755,0.00016009,2]
[310106415,1704342632712,-365.01349096,0.0001601,2]
[310106416,1704342632722,-403.83558159,0.00016095,2]
[310106418,1704342632731,-13675.790189,0.00016096,2]
[310106420,1704342632740,-3733.52819314,0.00016097,2]
[310106421,1704342632750,-36779.03407902,0.00016098,2]
[310106422,1704342632759,-343.2390015,0.00016102,2]
[310106423,1704342632768,-242.47711318,0.00016103,2]
[310106424,1704342632777,-154.8915759,0.00016103,2]
[310106425,1704342632786,-40695.87683527,0.00016104,2]
[310106470,1704342638744,-2714.26999412,0.00016104,2]
[310106472,1704342638756,-34862.09936611,0.00016104,2]
[310106474,1704342638766,-309.67484838,0.0001611,2]
[310106476,1704342638776,-2973.52677587,0.00016119,2]
[310106478,1704342638785,-264.24263466,0.00016125,2]
[310106480,1704342638794,-4053.61507601,0.00016131,2]
[310106482,1704342638803,-1573.51769649,0.00016143,2]
[310106484,1704342638812,-467.7427389,0.00016156,2]
[310106486,1704342638821,-170.21507045,0.00016167,2]
[310106488,1704342638830,-641.96499442,0.00016268,2]
[310106490,1704342638839,-989.86842184,0.00016291,2]
[310106492,1704342638848,-155.14464761,0.00016294,2]
[310106494,1704342638857,-2090.49096147,0.00016295,2]
[310106496,1704342638866,-2097.73160257,0.00016296,2]
[310106498,1704342638875,-627.71495148,0.00016297,2]
[310106500,1704342638885,-1074.68772138,0.00016298,2]
[310106502,1704342638894,-155.49227438,0.00016298,2]
[310106504,1704342638903,-155.15889919,0.00016298,2]
[310106506,1704342638912,-261.76575841,0.00016298,2]
[310106519,1704342639026,-285.22748665,0.00016298,2]
[310106521,1704342639038,-162.05733397,0.00016298,2]
[310106523,1704342639047,-7930.22202784,0.00016298,2]
[310106525,1704342639057,-2726.35945967,0.00016298,2]
[310106527,1704342639066,-322.86935835,0.00016298,2]
[310106529,1704342639074,-155.05749334,0.00016298,2]
[310106531,1704342639083,-249.8882546,0.00016298,2]
[310106533,1704342639093,-2067.82698933,0.00016298,2]
[310106535,1704342639102,-15852.35378489,0.00016299,2]
[310106537,1704342639111,-562.64906392,0.000163,2]
[310106539,1704342639120,-5210.05665149,0.000163,2]
[310106542,1704342639130,-2171.4499975,0.000163,2]
[310106544,1704342639139,-51486.53388094,0.000163,2]
[310106546,1704342639148,-10479.76281548,0.00017898,2]
[310106548,1704342639157,-1098.74009088,0.00018,2]
[310106550,1704342639167,-168.33430083,0.000189,2]
[310106552,1704342639175,-1576.61622724,0.00019,2]
[310106554,1704342639184,-174.379375,0.00019178,2]
[310106555,1704342639193,-154.8915759,0.0002,2]
[310106557,1704342639203,-676.09716813,0.0002,2]
[310106560,1704342639212,-154.8915759,0.0002,2]
[310106562,1704342639222,-273.22384269,0.0002,2]
[310106563,1704342639232,-2990.69030985,0.0002,2]
[310106565,1704342639242,-235.68021843,0.0002,2]
[310106567,1704342639251,-852.41517296,0.0002,2]
[310106570,1704342639260,-1193.60075025,0.0002,2]
[310106571,1704342639270,-1950.881968,0.0002,2]
[310106573,1704342639279,-1950.881968,0.0002,2]
[310106575,1704342639289,-1950.881968,0.0002,2]
[310106577,1704342639298,-1950.881968,0.0002,2]
[310106579,1704342639307,-1950.881968,0.0002,2]
[310106581,1704342639316,-365.01349094,0.00020242,2]
[310106583,1704342639325,-151.0,0.00021917,2]
[310106585,1704342639334,-500.0,0.00021917,2]
[310106587,1704342639343,-500.0,0.00021917,2]
[310106589,1704342639352,-500.0,0.00021917,2]
[310106591,1704342639361,-402.04495156,0.00021917,2]
[310106593,1704342639370,-462.44902768,0.00021917,2]
[310106595,1704342639379,-304.93018981,0.00021917,2]
[310106597,1704342639388,-152.4650949,0.00021917,2]
[310106599,1704342639398,-203.2867932,0.00021917,2]
[310106601,1704342639407,-166.666666,0.00021918,2]
[310106604,1704342639418,-154.8915759,0.00022,2]
[310106606,1704342639427,-4910.23012541,0.00022,2]
[310106608,1704342639439,-3909.94605772,0.00022,2]
[310106610,1704342639447,-151.0,0.00022,2]
[310106612,1704342639457,-154.972311,0.00022,2]
[310106614,1704342639467,-151.0,0.00022,2]
[310106616,1704342639476,-166.666666,0.00022431,2]
[310106618,1704342639485,-2901.72152644,0.00022496,2]
[310106620,1704342639495,-353.746196,0.00022705,2]
[310106622,1704342639504,-166.666666,0.00022944,2]
[310106623,1704342639513,-166.666666,0.00023456,2]
[310106626,1704342639522,-168.33430083,0.000239,2]
[310106628,1704342639532,-166.666666,0.00023969,2]
[310106630,1704342639541,-2290.19190816,0.00024,2]
[310106632,1704342639550,-365.01349094,0.00024475,2]
[310106634,1704342639559,-166.666666,0.00024482,2]
[310106635,1704342639568,-1967.67181909,0.00024496,2]
[310106637,1704342639578,-431.75548401,0.00024746,2]
[310106638,1704342639587,-180.57748244,0.00024996,2]
[310106640,1704342639598,-255.55494525,0.00024996,2]
[310106642,1704342639607,-261.2715888,0.00024996,2]
[310106643,1704342639617,-1733.76705189,0.00024996,2]
[310106645,1704342639627,-155.03277991,0.00024996,2]
[310106647,1704342639637,-555.15473275,0.00024996,2]
[310106649,1704342639646,-300.68220091,0.00024996,2]
[310106650,1704342639656,-941.86125495,0.00024996,2]
[310106652,1704342639665,-577.09878801,0.00024996,2]
[310106653,1704342639674,-162.44234547,0.00024997,2]
[310106654,1704342639684,-158.52718867,0.00024997,2]
[310106655,1704342639693,-156.18949534,0.00024997,2]
[310106656,1704342639702,-272.54997029,0.00024998,2]
[310106657,1704342639715,-871.39988609,0.00024998,2]
[310106658,1704342639724,-590.516407,0.00024998,2]
[310106659,1704342639734,-155.45297,0.00024998,2]
[310106660,1704342639743,-330.20328589,0.00024998,2]
[310106661,1704342639752,-378.16540661,0.00024998,2]
[310106662,1704342639762,-157.27806261,0.00024998,2]
[310106663,1704342639771,-155.11604587,0.00024998,2]
[310106664,1704342639781,-208.02951369,0.00024998,2]
[310106665,1704342639790,-4802.57442748,0.00024998,2]
[310106667,1704342639800,-4779.90873547,0.00024998,2]
[310106668,1704342639809,-328.21739259,0.00024998,2]
[310106669,1704342639818,-2031.17478188,0.00024998,2]
[310106670,1704342639827,-623.47877653,0.00024998,2]
[310106671,1704342639837,-1028.76933116,0.00024998,2]
[310106672,1704342639846,-568.19932012,0.00024998,2]
[310106673,1704342639855,-720.28103652,0.00024998,2]
[310106674,1704342639865,-151.0,0.00024998,2]
[310106675,1704342639874,-151.0,0.00024998,2]
[310106676,1704342639883,-151.0,0.00024998,2]
[310106677,1704342639892,-401.26467,0.00024998,2]
[310106678,1704342639901,-401.26467,0.00024998,2]
[310106679,1704342639911,-3083.28625509,0.00024999,2]
[310106680,1704342639920,-4704.77366573,0.00025,2]
[310106681,1704342639929,-3000.0,0.00025,2]
[310106682,1704342639938,-154.8915759,0.00025,2]
[310106683,1704342639947,-1411.385854,0.00025,2]
[310106684,1704342639957,-613.10329314,0.00025,2]
[310106685,1704342639966,-679.56551195,0.00025,2]
[310106686,1704342640039,-155.39702414,0.00025,2]
[310106687,1704342640049,-684.62879213,0.00025,2]
[310106688,1704342640058,-2000.0,0.00025,2]
[310106689,1704342640067,-309.73672456,0.00025,2]
[310106690,1704342640076,-2000.0,0.0002501,2]
[310106691,1704342640086,-2000.0,0.0002502,2]
[310106692,1704342640095,-2000.0,0.0002503,2]
[310106693,1704342640103,-155.06089115,0.00025038,2]
[310106694,1704342640113,-156.92492343,0.00025038,2]
[310106695,1704342640122,-155.18080844,0.00025038,2]
[310106696,1704342640131,-360.17963563,0.00025038,2]
[310106697,1704342640140,-394.23430496,0.00025038,2]
[310106698,1704342640149,-151.0,0.00025039,2]
[310106699,1704342640158,-246.70409972,0.00025039,2]
[310106700,1704342640167,-464.74580468,0.00025039,2]
[310106701,1704342640176,-2000.0,0.0002504,2]
[310106702,1704342640185,-2000.0,0.0002505,2]
[310106703,1704342640194,-2000.0,0.0002506,2]
[310106704,1704342640203,-2000.0,0.0002507,2]
[310106705,1704342640213,-151.0,0.0002507,2]
[310106706,1704342640222,-151.0,0.0002507,2]
[310106707,1704342640233,-401.26467,0.0002507,2]
[310106708,1704342640242,-401.26467,0.0002507,2]
[310106709,1704342640250,-2000.0,0.0002508,2]
[310106710,1704342640259,-2000.0,0.0002509,2]
[310106711,1704342640269,-2000.0,0.000251,2]
[310106712,1704342640278,-2076.65490248,0.000251,2]
[310106713,1704342640287,-2634.5181692,0.000251,2]
[310106714,1704342640296,-1819.50931487,0.000251,2]
[310106715,1704342640305,-300.0,0.000251,2]
[310106716,1704342640314,-3002.87321176,0.000251,2]
[310106717,1704342640324,-163.0705,0.000251,2]
[310106718,1704342640333,-2000.0,0.0002511,2]
[310106719,1704342640342,-2000.0,0.0002512,2]
[310106720,1704342640351,-2000.0,0.0002513,2]
[310106721,1704342640360,-2000.0,0.0002514,2]
[310106722,1704342640369,-3892.253729,0.0002515,2]
[310106723,1704342640378,-200.0,0.00025479,2]
[310106724,1704342640388,-3410.85748861,0.00026,2]
[310106725,1704342640397,-365.29679371,0.00026,2]
[310106726,1704342640406,-816.0659179,0.00027,2]
[310106727,1704342640415,-156.11119389,0.00027397,2]
[310106728,1704342640424,-151.0,0.00027397,2]
[310106729,1704342640433,-216.0,0.00027397,2]
[310106730,1704342640443,-151.0,0.00027397,2]
[310106731,1704342640452,-151.0,0.00027397,2]
[310106732,1704342640462,-401.26467,0.00027397,2]
[310106733,1704342640471,-401.26467,0.00027397,2]
[310106734,1704342640481,-4316.7,0.00027397,3]
[310106735,1704342640490,-6739.81,0.00027397,3]
[310106736,1704342640500,-5616.51,0.00027397,3]
[310106737,1704342640509,-3000.0,0.000275,7]
[310106738,1704342640518,-344.36468707,0.00028,2]
[310106739,1704342640528,-154.8915759,0.00028,2]
[310106740,1704342640537,-157.24811752,0.0002828,2]
[310106741,1704342640547,-251.189,0.00028457,2]
[310106742,1704342640556,-151.0,0.00028699,2]
[310106743,1704342640567,-365.01349094,0.00028707,2]
[310106744,1704342640581,-636.57272368,0.00028827,2]
[310106745,1704342640615,-151.0,0.00028888,2]
[310106746,1704342640625,-227.156569,0.00028888,2]
[310106747,1704342640635,-151.0,0.00028888,2]
[310106748,1704342640644,-401.26467,0.00028888,2]
[310106749,1704342640653,-401.26467,0.00028888,2]
[310106750,1704342640663,-55095.59076934,0.00028888,2]
[310106751,1704342640673,-334.48762587,0.000295,30]
[310106752,1704342640682,-1321.08258665,0.000297,2]
[310106753,1704342640691,-500.0,0.00029789,4]
[310106754,1704342640701,-373.91217151,0.00029789,4]
[310106755,1704342640710,-500.0,0.00029789,4]
[310106756,1704342640719,-500.0,0.00029789,4]
[310106757,1704342640729,-500.0,0.00029789,4]
[310106758,1704342640738,-270.99206741,0.00029789,4]
[310106759,1704342640747,-417.34023441,0.00029789,4]
[310106760,1704342640757,-500.0,0.00029789,4]
[310106761,1704342640766,-500.0,0.00029789,4]
[310106762,1704342640775,-480.00085081,0.00029789,4]
[310106763,1704342640785,-517.94523828,0.00029789,4]
[310106764,1704342640794,-500.0,0.00029789,4]
[310106765,1704342640803,-500.0,0.00029789,4]
[310106766,1704342640812,-500.0,0.00029789,4]
[310106767,1704342640821,-30132.19549434,0.0002979,7]
[310106768,1704342640830,-151.0,0.0002979,2]
[310106769,1704342640839,-401.26467,0.0002979,2]
[310106770,1704342640848,-401.26467,0.0002979,2]
[310106771,1704342640857,-496.1966346,0.000298,5]
[310106772,1704342640866,-151.50827296,0.0002994,2]
[310106773,1704342640874,-243.26967795,0.0003,4]
[310106774,1704342640883,-4099.07002537,0.0003,4]
[310106775,1704342640892,-685.53559507,0.0003,4]
[310106776,1704342640901,-3295.8255911,0.0003,4]
[310106777,1704342640911,-159.01242882,0.0003,2]
[310106778,1704342640920,-1200.0,0.0003,4]
[310106779,1704342640981,-640.15050957,0.0003,4]
[310106780,1704342640991,-2749.0816799,0.0003,2]
[310106781,1704342641001,-1738.65285554,0.0003,2]
[310106782,1704342641011,-4378.94750333,0.0003,3]
[310106783,1704342641020,-170.63772567,0.0003,2]
[310106784,1704342641029,-151.0,0.0003,2]
[310106785,1704342641038,-3056.050505,0.0003,2]
[310106786,1704342641048,-173.0,0.0003,2]
[310106787,1704342641057,-150.89437394,0.00030061,7]
[310106788,1704342641067,-1050.07764015,0.00030082,2]
[310106789,1704342641077,-620.82863618,0.00030268,2]
[310106790,1704342641085,-150.89437394,0.00030674,4]
[310106791,1704342641094,-150.89437394,0.000313,2]
[310106792,1704342641103,-167.0,0.00031457,2]
[310106793,1704342641111,-160.0,0.00031979,2]
[310106794,1704342641120,-150.284,0.00031979,2]
[310106795,1704342641129,-150.0,0.00031979,2]
[310106796,1704342641138,-497.22311031,0.00032,2]
[310106797,1704342641148,-2964.61599509,0.00032,10]
[310106798,1704342641157,-151.0,0.00032402,2]
[310106799,1704342641166,-500.0,0.00032876,7]
[310106800,1704342641175,-221.83677076,0.00032876,7]
[310106801,1704342641184,-500.0,0.00032876,7]
[310106802,1704342641193,-551.53371367,0.00032876,7]
[310106803,1704342641203,-365.01349094,0.00032939,2]
[310106804,1704342641212,-173.0,0.00033,2]
[310106805,1704342641222,-173.0,0.00033,2]
[310106806,1704342641233,-170.0,0.00033,2]
[310106807,1704342641242,-250.25,0.0003303,2]
[310106808,1704342641251,-250.25,0.0003303,2]
[310106809,1704342641261,-250.25,0.0003303,2]
[310106810,1704342641270,-250.25,0.0003303,2]
[310106811,1704342641279,-250.25,0.0003303,2]
[310106812,1704342641290,-250.25,0.0003303,2]
[310106813,1704342641299,-250.25,0.0003303,2]
[310106814,1704342641308,-250.25,0.0003303,2]
[310106815,1704342641317,-250.25,0.0003303,2]
[310106816,1704342641326,-250.34,0.0003303,2]
[310106817,1704342641335,-280.71548438,0.0003303,2]
[310106818,1704342641346,-401.26467,0.0003303,2]
[310106819,1704342641355,-401.26467,0.0003303,2]
[310106820,1704342641364,-401.26467,0.00033031,2]
[310106821,1704342641373,-401.26467,0.00033031,2]
[310106822,1704342641383,-65714.72443829,0.00033031,2]
[310106827,1704342641776,-355.75188811,0.00021917,2]
[310106828,1704342641786,-19.88446915,0.00033,2]
[310106829,1704342641800,-146.11553085,0.00033,2]
[310106830,1704342641810,-852.17114888,0.00033031,2]
[310106887,1704342721361,-154.8915759,0.00016103,2]
[310106888,1704342721391,-197.23128902,0.00016104,2]
[310106889,1704342721426,-717.16934297,0.00016104,2]
[310106890,1704342721465,-717.16934297,0.00016104,2]
[310106891,1704342915812,24900.0,0.00015099,2]
[310106892,1704342989059,154.8915759,0.00015099,2]
[310106893,1704342990446,533.49576581,0.00015099,2]
[310106894,1704343006448,533.05759717,0.00015099,2]
[310106895,1704343009056,155.59094051,0.00015099,2]
[310106896,1704343035714,524.96234709,0.00016,2]
[310106897,1704343067437,176.33403755,0.00016,2]
[310106898,1704343226371,1083.49842303,0.0002,7]
[310106899,1704343386603,24900.0,0.00015098,2]
[310106900,1704343510834,1238.36033084,0.00016,2]
[310106901,1704343519859,13675.790189,0.00016,2]
[310106902,1704343526842,1238.36033084,0.00016,2]
[310106903,1704343533860,4873.13906184,0.00016,2]
[310106904,1704343544848,864.0660609,0.00016,2]
[310106905,1704343676109,10000.0,0.00016,2]
[310106906,1704343685149,10000.0,0.000211,10]
[310106908,1704343692676,10000.0,0.00016,2]
[310106909,1704343702142,10000.0,0.00016,2]
[310106910,1704343710215,3531.59473872,0.00016,2]
[310106911,1704343710240,6468.40526128,0.00016,2]
[310106913,1704343720052,10000.0,0.00016,2]
[310106914,1704343732325,10000.0,0.00016,2]
[310106915,1704343745228,-154.8915759,0.00016001,3]
[310106916,1704343745255,-598.00699809,0.00016003,2]
[310106917,1704343745290,-568.03958684,0.00016003,2]
[310106918,1704343769876,-637.26945873,0.00016003,2]
[310106919,1704343769916,-58.98372482,0.00016003,2]
[310106920,1704343769944,-720.33361239,0.00016003,2]
[310106921,1704343771305,154.8915759,0.00014402,2]
[310106922,1704343791276,154.8915759,0.00014402,2]
[310106923,1704343795113,-807.64907312,0.00016003,2]
[310106924,1704343795166,-692.5543924,0.00016003,2]
[310106925,1704343796506,854.17404008,0.00015986,2]
[310106926,1704343811293,154.8915759,0.00014402,2]
[310106927,1704343829291,154.8915759,0.00014402,2]
[310106967,1704343831821,-2695.61638224,0.00016003,2]
[310106968,1704343831837,-3616.06067097,0.00016003,2]
[310107035,1704343838065,-69740.03206438,0.00016003,2]
[310107044,1704343838145,-18939.77455554,0.00016004,2]
[310107046,1704343838159,-24659.45571782,0.00016004,2]
[310107048,1704343838170,-176731.17628647,0.00016004,2]
[310107103,1704343843079,-2289.5786373,0.00016004,2]
[310107108,1704343854380,24900.0,0.00015101,2]
[310107113,1704343945082,250.0,0.00015047,2]
[310107114,1704344047987,648.7474286,0.000125,2]
[310107115,1704344061699,268.2555444,0.0001,2]
[310107116,1704344087418,391.0,0.000213,7]
[310107117,1704344088189,200.0,0.0002343,7]
[310107118,1704344094617,208.2953955,0.00015047,2]
[310107120,1704344258298,10000.0,0.00016,2]
[310107121,1704344267342,10000.0,0.00016,2]
[310107122,1704344274832,10000.0,0.00016,2]
[310107123,1704344284398,154.8915759,0.00015999,2]
[310107124,1704344296421,154.8915759,0.00014402,2]
[310107125,1704344316610,154.8915759,0.00014402,2]
[310107126,1704344353778,5944.69403083,0.00014402,2]
[310107127,1704344415855,24900.0,0.00015026,2]
[310107132,1704344678290,-5090.7,0.00035616,120]
[310107133,1704344722604,974.55748819,0.00014402,2]
[310107134,1704344812645,19636.61273015,0.00015999,2]
[310107135,1704344819518,22981.40805838,0.00015901,2]
[310107140,1704344851828,5944.69403083,0.00014402,2]
[310107141,1704344861164,176.33403755,0.00015999,2]
[310107142,1704344861757,24900.0,0.00015003,2]
[310107144,1704344908528,154.87609912,0.00014402,2]
[310107146,1704344942923,-722.97471711,0.00016,2]
[310107147,1704344942974,-722.97471711,0.00016,2]
[310107148,1704344943037,-320.27966768,0.00016,2]
[310107149,1704344968369,-758.29929915,0.00016,2]
[310107150,1704344968446,-520.16352713,0.00016,2]
[310107152,1704344992898,-428.81707647,0.00016,2]
[310107153,1704344992924,-285.30351426,0.00016002,2]
[310107154,1704344992950,-69.74796495,0.00016002,2]
[310107155,1704344992981,-239.84958607,0.00016002,2]
[310107156,1704344993007,-389.73857023,0.00016002,2]
[310107157,1704345011026,510.87451457,0.00015779,2]
[310107158,1704345024631,239.99365941,0.00014491,2]
[310107172,1704345032001,-781.46006972,0.00016002,2]
[310107173,1704345032011,-3445.99514679,0.00016002,2]
[310107174,1704345032021,-297.27547991,0.00016002,2]
[310107175,1704345032031,-369.22605694,0.00016003,2]
[310107176,1704345032041,-683.33923204,0.00016004,2]
[310107178,1704345032050,-179.43181107,0.00016094,2]
[310107180,1704345032060,-154.8915759,0.00016098,2]
[310107182,1704345032069,-928.94994741,0.00016102,2]
[310107184,1704345032081,-960.96602465,0.00016102,2]
[310107186,1704345032090,-1325.14351507,0.00016102,2]
[310107188,1704345032099,-211.07566614,0.00016103,2]
[310107190,1704345032109,-40395.42442724,0.00016103,2]
[310107194,1704345032136,-310.43515269,0.00016103,2]
[310107245,1704345038219,-2452.13204473,0.00016103,2]
[310107249,1704345041109,-5334.83606592,0.00016103,2]
[310107255,1704345043352,-5506.23322301,0.00016103,2]
[310107256,1704345043361,-5116.54004849,0.00016104,2]
[310107272,1704345103536,244.59421541,0.00015902,2]
[310107273,1704345124526,154.87609912,0.00014491,2]
[310107274,1704345139172,3481.29568938,0.00015779,2]
[310107276,1704345159178,309.215723,0.00015952,2]
[310107278,1704345191187,17621.84278842,0.00015902,2]
[310107280,1704345284571,154.87609912,0.00014491,2]
[310107281,1704345346449,24900.0,0.00015103,2]
[310107283,1704345588413,391.0,0.00021426,7]
[310107287,1704345762546,309.215723,0.00015103,2]
[310107293,1704345885503,250.0,0.000151,2]
[310107294,1704345888573,289.0,0.00021426,7]
[310107296,1704345948319,24900.0,0.00015087,2]
[310107297,1704345965350,4804.83758646,0.00016,2]
[310107298,1704345977105,212.67163283,0.00016,2]
[310107302,1704346108367,4804.83758646,0.00016,2]
[310107304,1704346115989,-774.87117332,0.00016001,2]
[310107305,1704346116025,-254.3748008,0.00016001,2]
[310107306,1704346116053,-171.2815728,0.00016004,2]
[310107307,1704346116080,-170.21507045,0.00016097,2]
[310107308,1704346116108,-178.99972927,0.00016098,2]
[310107309,1704346140724,-33.51929572,0.00016098,2]
[310107310,1704346140754,-214.68941255,0.00016098,2]
[310107311,1704346140783,-557.65731198,0.00016098,2]
[310107312,1704346140823,-470.86813147,0.00016098,2]
[310107313,1704346140850,-25.34569731,0.00016099,2]
[310107315,1704346165577,-831.90761723,0.00016097,2]
[310107316,1704346165626,-216.82607387,0.00016097,2]
[310107317,1704346191037,-852.88229105,0.00016097,2]
[310107318,1704346191092,-130.42966053,0.00016097,2]
[310107319,1704346191120,-154.87609912,0.00016098,2]
[310107320,1704346191147,-470.88222428,0.00016099,2]
[310107352,1704346232150,-715.79591423,0.00016098,2]
[310107354,1704346232224,-1339.85658899,0.00016098,2]
[310107355,1704346232239,-154.87609912,0.00016098,2]
[310107356,1704346232253,-4803.68452735,0.00016098,2]
[310107357,1704346232267,-241.668536,0.00016098,2]
[310107358,1704346232283,-4272.89771384,0.00016099,2]
[310107359,1704346232369,-2715.57031202,0.00016099,2]
[310107360,1704346232405,-13673.02936715,0.000161,2]
[310107361,1704346232416,-267.11550093,0.00016101,2]
[310107362,1704346232425,-330.94944783,0.00016101,2]
[310107363,1704346232434,-154.90705577,0.00016101,2]
[310107364,1704346232444,-524.84202363,0.00016101,2]
[310107365,1704346232453,-18188.25401703,0.00016102,2]
[310107366,1704346232463,-204.87243179,0.00016102,2]
[310107367,1704346232472,-300.68220091,0.00016103,2]
[310107368,1704346232482,-11674.67707049,0.00016103,2]
[310107412,1704346238359,-7208.55627189,0.00016103,2]